bitfinex/quotes_SOLUSD_20251009
["timestamp","ask_amount","ask_price","bid_price","bid_amount"]
[1759981305292,4.42360435,226.06,226.04,0.2]
[1759981306396,0.66,226.05,226.04,0.2]
[1759981307582,5.08380004,226.05,226.04,0.2]
[1759981313608,4.42380004,226.05,226.04,0.2]
[1759981314105,4.42380004,226.05,226.04,0.88]
[1759981314786,4.42380004,226.05,226.04,0.2]
[1759981315394,6.73744055,226.05,226.04,0.2]
[1759981324619,20.8,225.93,225.88,1e-08]
[1759981324797,22.45364051,225.89,225.88,1e-08]
[1759981324991,56.83357059,225.89,225.81,0.2]
[1759981325296,1.65364051,225.83,225.81,0.2]
[1759981326305,6.08175014,225.83,225.81,0.2]
[1759981326507,6.78175014,225.83,225.81,0.2]
[1759981327492,6.08175014,225.83,225.81,0.2]
[1759981328615,6.78175014,225.83,225.81,0.2]
[1759981329120,6.08175014,225.83,225.81,0.2]
[1759981329811,6.78175014,225.83,225.81,0.2]
[1759981330193,37.48175014,225.83,225.81,0.2]
[1759981330694,38.18175014,225.83,225.81,0.2]
[1759981333719,44.79631218,225.83,225.81,0.2]
[1759981335402,44.09631218,225.83,225.81,0.2]
[1759981335621,0.7,225.82,225.81,0.2]
[1759981336310,5.12830573,225.82,225.81,0.2]
[1759981337599,5.12830573,225.82,225.81,1e-08]
[1759981337998,7.72002611,225.82,225.81,1e-08]
[1759981338198,18.79079043,225.82,225.79,0.2]
[1759981338420,2.59172038,225.8,225.79,0.2]
[1759981338804,3.29172038,225.8,225.79,0.2]
[1759981339000,15.49907005,225.82,225.79,0.2]
[1759981339206,33.93172038,225.81,225.79,0.89]
[1759981339402,4.42869796,225.8,225.79,0.2]
[1759981339607,7.02041834,225.8,225.79,0.2]
[1759981340019,7.02041834,225.8,225.79,0.89]
[1759981340895,4.42869796,225.8,225.79,0.89]
[1759981341099,7.02041834,225.8,225.79,0.89]
[1759981342521,7.02041834,225.8,225.79,0.2]
[1759981344908,7.72041834,225.8,225.79,0.2]
[1759981345431,7.72041834,225.8,225.79,1e-08]
[1759981346106,7.02041834,225.8,225.79,1e-08]
[1759981348630,141.32041834,225.8,225.79,1e-08]
[1759981350416,142.02041834,225.8,225.79,1e-08]
[1759981351303,139.42869796,225.8,225.79,1e-08]
[1759981351604,141.32041834,225.8,225.79,1e-08]
[1759981351809,142.02041834,225.8,225.79,1e-08]
[1759981352127,141.32041834,225.8,225.79,1e-08]
[1759981352632,142.02041834,225.8,225.79,1e-08]
[1759981352836,142.02041834,225.8,225.78,1e-08]
[1759981353132,33.87172038,225.79,225.78,1e-08]
[1759981353429,34.57172038,225.79,225.78,1e-08]
[1759981353810,39.00061448,225.79,225.78,1e-08]
[1759981355408,134.3,225.78,225.77,1e-08]
[1759981355748,134.3,225.78,225.73,0.2]
[1759981355749,20.8,225.75,225.73,0.2]
[1759981355927,38.28159545,225.74,225.73,0.2]
[1759981356310,7.02159545,225.74,225.73,0.89]
[1759981356510,38.30159545,225.74,225.73,0.89]
[1759981356935,7.02159545,225.74,225.73,0.89]
[1759981357145,38.30159545,225.74,225.73,0.89]
[1759981360319,38.30159545,225.74,225.73,0.2]
[1759981360833,7.02159545,225.74,225.73,0.2]
[1759981361031,38.28159545,225.74,225.73,0.2]
[1759981361736,7.02159545,225.74,225.73,0.89]
[1759981361918,35.68987507,225.74,225.73,0.89]
[1759981364243,38.28159545,225.74,225.73,0.2]
[1759981364934,41.92168734,225.74,225.73,0.2]
[1759981365143,38.96159545,225.74,225.73,0.2]
[1759981365531,38.28159545,225.74,225.73,0.2]
[1759981367239,41.2474039,225.74,225.73,0.2]
[1759981368828,38.61568352,225.74,225.73,0.9]
[1759981369141,10.6674039,225.74,225.73,1e-08]
[1759981369938,9.9874039,225.74,225.73,1e-08]
[1759981370853,10.6674039,225.74,225.73,1e-08]
[1759981371943,7.39568352,225.74,225.73,0.70000001]
[1759981372133,9.9874039,225.74,225.73,1e-08]
[1759981373647,9.9874039,225.74,225.73,0.70000001]
[1759981373836,7.02159545,225.74,225.73,0.70000001]
[1759981374036,9.9874039,225.74,225.73,0.70000001]
[1759981374233,7.02159545,225.74,225.73,0.70000001]
[1759981374436,9.9874039,225.74,225.73,0.70000001]
[1759981374642,7.02159545,225.74,225.73,0.70000001]
[1759981374829,9.9874039,225.74,225.73,0.70000001]
[1759981375029,7.02159545,225.74,225.73,0.70000001]
[1759981375247,9.9874039,225.74,225.73,0.70000001]
[1759981375443,7.02159545,225.74,225.73,0.70000001]
[1759981375642,9.9874039,225.74,225.73,1e-08]
[1759981375845,7.02159545,225.74,225.73,1e-08]
[1759981376149,7.02159545,225.74,225.73,0.70000001]
[1759981376540,7.02159545,225.74,225.73,1e-08]
[1759981380732,38.88159545,225.74,225.73,1e-08]
[1759981381060,41.8563668,225.74,225.73,1e-08]
[1759981385659,41.1763668,225.74,225.73,1e-08]
[1759981387158,9.9963668,225.74,225.73,0.70000001]
[1759981387347,7.02159545,225.74,225.73,0.70000001]
[1759981387555,9.9963668,225.74,225.73,0.70000001]
[1759981388331,9.9963668,225.74,225.73,1e-08]
[1759981390555,9.9963668,225.74,225.73,0.70000001]
[1759981390955,7.02159545,225.74,225.73,0.70000001]
[1759981392859,4.42987507,225.74,225.73,0.70000001]
[1759981393461,4.42967579,225.76,225.73,0.70000001]
[1759981394173,7.02139617,225.76,225.73,0.70000001]
[1759981395251,19.20546996,225.76,225.73,1e-08]
[1759981395440,2.59172038,225.74,225.73,1e-08]
[1759981396094,2.59172038,225.74,225.73,0.70000001]
[1759981396243,46.64338238,225.76,225.73,0.70000001]
[1759981396553,7.02159545,225.74,225.73,0.70000001]
[1759981397546,4.42987507,225.74,225.73,0.70000001]
[1759981399879,6.08871164,225.74,225.73,0.70000001]
[1759981400167,6.08871164,225.74,225.73,1e-08]
[1759981400872,6.80871164,225.74,225.73,1e-08]
[1759981401174,9.79285876,225.74,225.73,1e-08]
[1759981401844,11.56689135,225.74,225.73,1e-08]
[1759981403766,9.79285876,225.74,225.73,1e-08]
[1759981403965,9.07285876,225.74,225.73,1e-08]
[1759981405973,7.41402219,225.74,225.73,0.70000001]
[1759981406153,4.42987507,225.74,225.73,0.70000001]
[1759981406467,7.41402219,225.74,225.73,1e-08]
[1759981406867,9.07285876,225.74,225.73,1e-08]
[1759981409167,9.07285876,225.74,225.73,0.70000001]
[1759981409771,9.07285876,225.74,225.73,1e-08]
[1759981410373,7.41402219,225.74,225.73,1e-08]
[1759981412068,7.41402219,225.74,225.73,0.70000001]
[1759981412375,7.41402219,225.74,225.73,1e-08]
[1759981415981,8.07402219,225.74,225.73,1e-08]
[1759981417692,7.41402219,225.74,225.73,1e-08]
[1759981419079,9.07285876,225.74,225.73,1e-08]
[1759981419482,9.07285876,225.74,225.73,0.66000001]
[1759981419982,9.07285876,225.74,225.73,1e-08]
[1759981422390,9.49285876,225.74,225.73,1e-08]
[1759981422560,8.83285876,225.74,225.73,1e-08]
[1759981425685,5.84871164,225.74,225.73,0.72000001]
[1759981425890,8.83285876,225.74,225.73,1e-08]
[1759981426276,39.95285876,225.74,225.73,0.72000001]
[1759981426475,8.83285876,225.74,225.73,0.72000001]
[1759981427370,8.83285876,225.74,225.73,1e-08]
[1759981428090,4.18987507,225.74,225.73,0.72000001]
[1759981428884,7.17591404,225.74,225.73,0.72000001]
[1759981432499,4.18987507,225.74,225.73,0.72000001]
[1759981432702,7.17591404,225.74,225.73,0.72000001]
[1759981432997,4.18987507,225.74,225.73,0.72000001]
[1759981433194,7.17591404,225.74,225.73,0.72000001]
[1759981433402,4.18987507,225.74,225.73,0.72000001]
[1759981433586,7.17591404,225.74,225.73,0.72000001]
[1759981433892,4.18987507,225.74,225.73,0.72000001]
[1759981434096,7.17591404,225.74,225.73,0.72000001]
[1759981434299,4.18987507,225.74,225.73,0.72000001]
[1759981434484,7.17591404,225.74,225.73,0.72000001]
[1759981434684,4.18987507,225.74,225.73,0.72000001]
[1759981434883,7.17591404,225.74,225.73,0.72000001]
[1759981435098,4.18987507,225.74,225.73,0.72000001]
[1759981435299,7.17591404,225.74,225.73,0.72000001]
[1759981435499,4.18987507,225.74,225.73,1e-08]
[1759981435677,7.17591404,225.74,225.73,1e-08]
[1759981436079,8.83475061,225.74,225.73,1e-08]
[1759981436294,9.49475061,225.74,225.73,1e-08]
[1759981436688,8.83475061,225.74,225.73,1e-08]
[1759981441780,9.49475061,225.74,225.73,1e-08]
[1759981441983,7.17591404,225.74,225.73,1e-08]
[1759981442292,8.83475061,225.74,225.73,1e-08]
[1759981442501,39.93475061,225.74,225.73,1e-08]
[1759981447407,40.58475061,225.74,225.73,1e-08]
[1759981448590,44.3032148,225.74,225.73,1e-08]
[1759981448798,46.07724739,225.74,225.73,1e-08]
[1759981449309,42.3587832,225.74,225.73,1e-08]
[1759981450086,46.07724739,225.74,225.73,1e-08]
[1759981450687,42.3587832,225.74,225.73,1e-08]
[1759981451698,11.2587832,225.74,225.73,1e-08]
[1759981451896,42.3587832,225.74,225.73,1e-08]
[1759981453315,20.8,225.71,225.7,1e-08]
[1759981453493,66.84489307,225.71,225.67,1e-08]
[1759981453826,22.45883657,225.68,225.67,1e-08]
[1759981453993,56.54487554,225.68,225.67,1e-08]
[1759981454312,61.62592835,225.68,225.67,1e-08]
[1759981455134,63.40051187,225.68,225.67,1e-08]
[1759981455603,62.75051187,225.68,225.67,1e-08]
[1759981456004,63.40051187,225.68,225.67,1e-08]
[1759981457387,32.30051187,225.68,225.67,1e-08]
[1759981457589,63.40051187,225.68,225.67,1e-08]
[1759981460005,64.33635854,225.68,225.67,1e-08]
[1759981463200,79.01888571,225.68,225.63,1e-08]
[1759981463396,23.39468324,225.64,225.63,1e-08]
[1759981463697,54.49468324,225.64,225.63,1e-08]
[1759981464519,54.49468324,225.64,225.56,0.9]
[1759981464520,25.98936648,225.61,225.56,0.9]
[1759981464706,27.82789687,225.57,225.56,0.9]
[1759981464895,56.35321363,225.57,225.56,0.9]
[1759981465101,61.54258011,225.57,225.56,0.9]
[1759981465515,61.54258011,225.57,225.56,0.2]
[1759981466111,61.54258011,225.57,225.56,1e-08]
[1759981466310,62.19258011,225.57,225.56,1e-08]
[1759981467002,62.17258011,225.57,225.56,1e-08]
[1759981467318,31.07258011,225.57,225.56,1e-08]
[1759981467521,65.14425806,225.57,225.56,1e-08]
[1759981468315,62.17258011,225.57,225.56,1e-08]
[1759981468639,65.14224701,225.57,225.56,1e-08]
[1759981469309,62.17258011,225.57,225.56,1e-08]
[1759981477423,31.07258011,225.57,225.56,1e-08]
[1759981477625,62.19258011,225.57,225.56,1e-08]
[1759981478339,82.60943088,225.57,225.56,1e-08]
[1759981478640,82.60943088,225.57,225.5,0.2]
[1759981478641,20.8,225.53,225.5,0.2]
[1759981478938,2.59468324,225.51,225.5,0.2]
[1759981479324,20.8,225.47,225.44,0.78]
[1759981479525,4.43537656,225.46,225.45,0.68]
[1759981481027,9.62474304,225.46,225.45,0.68]
[1759981481223,9.62474304,225.46,225.44,1e-08]
[1759981481224,7.6900598,225.46,225.44,1e-08]
[1759981481423,7.0300598,225.46,225.44,1e-08]
[1759981481625,7.0300598,225.46,225.45,0.68]
[1759981481838,38.2700598,225.46,225.45,0.68]
[1759981482044,40.92474304,225.46,225.45,0.68]
[1759981482223,9.62474304,225.46,225.44,1e-08]
[1759981482436,9.62474304,225.46,225.44,0.68000001]
[1759981482437,31.3,225.45,225.44,0.68000001]
[1759981483137,9.62474304,225.46,225.44,1e-08]
[1759981483443,0.5,225.45,225.44,1e-08]
[1759981483740,36.21557329,225.45,225.44,1e-08]
[1759981485250,4.93557329,225.45,225.44,1e-08]
[1759981485455,57.01557329,225.45,225.44,1e-08]
[1759981486446,25.73557329,225.45,225.44,1e-08]
[1759981486661,57.01557329,225.45,225.44,1e-08]
[1759981486825,57.01557329,225.45,225.44,0.66000001]
[1759981487855,25.73557329,225.45,225.44,0.66000001]
[1759981488067,59.61025653,225.45,225.44,0.66000001]
[1759981488428,28.33025653,225.45,225.44,0.66000001]
[1759981488773,59.61025653,225.45,225.44,0.66000001]
[1759981489652,64.04778252,225.45,225.44,0.66000001]
[1759981490447,38.81025653,225.45,225.44,0.66000001]
[1759981490754,38.79025653,225.45,225.44,0.66000001]
[1759981491527,7.53025653,225.45,225.44,0.66000001]
[1759981491953,38.79025653,225.45,225.44,0.66000001]
[1759981493071,36.19557329,225.45,225.44,0.66000001]
[1759981493234,4.93557329,225.45,225.44,0.66000001]
[1759981494163,0.5,225.45,225.44,0.66000001]
[1759981494754,4.93557329,225.45,225.44,0.66000001]
[1759981495470,0.5,225.45,225.44,0.66000001]
[1759981495846,33.85468324,225.5,225.44,0.66000001]
[1759981497268,4.43460623,225.5,225.44,0.66000001]
[1759981497450,31.26,225.53,225.45,10.87647521]
[1759981497766,31.26,225.53,225.47,10.87647521]
[1759981497950,31.26,225.53,225.48,0.66]
[1759981498758,7.02828997,225.55,225.48,0.66]
[1759981498958,31.26,225.54,225.48,0.66]
[1759981499846,7.02828997,225.55,225.49,10.87647521]
[1759981499847,4.43360673,225.55,225.49,10.87647521]
[1759981500050,35.69360673,225.55,225.5,0.66]
[1759981500262,2.59468324,225.54,225.48,10.87647521]
[1759981500646,2.59468324,225.54,225.45,20.8]
[1759981500647,2.59468324,225.5,225.44,1e-08]
[1759981500850,2.59468324,225.46,225.44,1e-08]
[1759981501248,31.24,225.49,225.45,0.66]
[1759981501449,33.85468324,225.5,225.45,0.66]
[1759981502184,4.43478646,225.49,225.45,0.66]
[1759981502684,7.0292905,225.5,225.45,0.66]
[1759981504359,7.0292905,225.5,225.46,0.66]
[1759981504555,7.0292905,225.5,225.47,0.66]
[1759981505852,7.0292905,225.5,225.44,10.87647522]
[1759981506058,7.0292905,225.5,225.47,0.7]
[1759981506978,149.82142948,225.53,225.48,0.7]
[1759981507164,2.59468324,225.51,225.49,0.7]
[1759981507862,2.59468324,225.51,225.47,0.7]
[1759981508179,4.4345898,225.5,225.48,0.7]
[1759981508864,4.4345898,225.5,225.49,0.7]
[1759981509267,7.0290783,225.51,225.49,0.7]
[1759981509466,7.0290783,225.51,225.5,0.7]
[1759981509784,3.70500025,225.61,225.51,10.87647521]
[1759981509984,19.99999999,225.73,225.57,2.59468324]
[1759981509985,4.43201397,225.64,225.57,2.59468324]
[1759981510170,0.66,225.65,225.58,0.7]
[1759981510367,0.66,225.65,225.59,2.59468324]
[1759981510368,5.09167215,225.65,225.59,2.59468324]
[1759981510881,9.71076352,225.66,225.61,2.59468324]
[1759981510882,7.11608028,225.66,225.61,2.59468324]
[1759981511084,7.11608028,225.66,225.62,0.7]
[1759981511271,7.11608028,225.66,225.62,3.29468324]
[1759981511470,7.11608028,225.66,225.61,4.432379]
[1759981511471,7.11608028,225.66,225.63,0.7]
[1759981511665,7.11608028,225.66,225.64,0.7]
[1759981512186,0.66,225.74,225.65,3.29468324]
[1759981512363,0.66,225.74,225.62,10.87647521]
[1759981512364,0.66,225.73,225.66,3.29468324]
[1759981512566,2.59468324,225.72,225.66,0.7]
[1759981512982,4.43046386,225.71,225.66,0.7]
[1759981513287,4.43046386,225.71,225.67,0.7]
[1759981513702,4.43046386,225.71,225.68,0.7]
[1759981513886,4.43027816,225.72,225.68,0.7]
[1759981514079,4.43027816,225.72,225.67,2.59468324]
[1759981514284,4.43027816,225.72,225.69,0.7]
[1759981514783,4.43007132,225.73,225.69,0.7]
[1759981516185,4.43007132,225.73,225.7,0.7]
[1759981516670,2.59468324,225.72,225.66,14.00347442]
[1759981516867,2.59468324,225.7,225.66,0.7]
[1759981517884,7.02545099,225.7,225.66,0.7]
[1759981518193,7.02545099,225.7,225.62,10.87647521]
[1759981518194,2.59468324,225.67,225.62,10.87647521]
[1759981518369,2.59468324,225.65,225.61,10.87647521]
[1759981518703,2.59468324,225.65,225.6,31.3]
[1759981518868,2.59468324,225.65,225.6,32.0]
[1759981519188,2.59468324,225.63,225.58,24.8840805]
[1759981519393,2.59468324,225.63,225.59,0.7]
[1759981520000,4.43223118,225.62,225.59,0.7]
[1759981520368,4.43223118,225.62,225.58,10.87647521]
[1759981520569,2.59468324,225.63,225.59,0.7]
[1759981520786,13.67382459,225.65,225.6,0.7]
[1759981521267,4.43223118,225.67,225.61,11.57647521]
[1759981521465,4.43124916,225.67,225.62,0.7]
[1759981521682,4.43124916,225.67,225.61,10.87647521]
[1759981521890,2.32011905,225.66,225.61,10.87647521]
[1759981522274,5.09164192,225.65,225.61,10.87647521]
[1759981522474,1.66011905,225.64,225.57,1.66011905]
[1759981522690,1.66011905,225.64,225.57,10.87647521]
[1759981522994,1.66011905,225.64,225.58,0.7]
[1759981524090,4.43203474,225.63,225.58,0.7]
[1759981524488,4.43203474,225.63,225.59,0.7]
[1759981524890,4.43183832,225.64,225.59,0.7]
[1759981525088,5.09183832,225.64,225.59,0.7]
[1759981526495,4.43183832,225.64,225.6,0.7]
[1759981526992,5.09183832,225.64,225.57,17.66979255]
[1759981527186,4.43159305,225.66,225.61,0.7]
[1759981527385,5.09159305,225.66,225.61,0.7]
[1759981527574,4.43159305,225.66,225.61,0.7]
[1759981527785,4.43159305,225.66,225.62,0.7]
[1759981528101,4.43124748,225.68,225.63,10.87647521]
[1759981528280,4.43124748,225.68,225.64,0.7]
[1759981529183,15.5084564,225.69,225.64,0.7]
[1759981529404,16.1684564,225.69,225.64,0.7]
[1759981529711,0.66,225.68,225.63,10.87647521]
[1759981529998,15.5084564,225.69,225.64,0.7]
[1759981529999,4.43085648,225.69,225.64,0.7]
[1759981530201,5.09085648,225.69,225.64,0.7]
[1759981530405,4.43085648,225.69,225.65,0.7]
[1759981531376,4.43085648,225.69,225.63,10.87647521]
[1759981531377,4.43085648,225.69,225.66,0.7]
[1759981532473,4.43066016,225.7,225.65,10.87647521]
[1759981532702,5.09066016,225.7,225.65,11.57647521]
[1759981533897,0.66,225.69,225.65,11.57647521]
[1759981534107,0.66,225.68,225.62,31.24]
[1759981534309,0.66,225.68,225.62,43.77659426]
[1759981534488,5.09118237,225.68,225.62,42.81647521]
[1759981534689,5.09118237,225.68,225.62,43.77659426]
[1759981535006,4.43118237,225.68,225.63,2.36011905]
[1759981535179,4.43118237,225.68,225.64,0.7]
[1759981535592,4.43118237,225.68,225.65,0.7]
[1759981535993,4.43085648,225.69,225.65,0.7]
[1759981536385,4.43085648,225.69,225.66,0.68]
[1759981537402,4.43066016,225.7,225.65,10.87647521]
[1759981537707,4.43066016,225.7,225.67,0.68]
[1759981538202,4.43026758,225.72,225.67,10.87647521]
[1759981538380,0.67,225.71,225.67,10.87647521]
[1759981539005,0.67,225.71,225.67,11.55647521]
[1759981539202,5.10059797,225.71,225.66,10.87647521]
[1759981539397,0.67,225.7,225.66,10.87647521]
[1759981540786,6.09071702,225.71,225.66,11.55647521]
[1759981540988,6.76071702,225.71,225.66,11.55647521]
[1759981541207,5.10059797,225.71,225.66,11.55647521]
[1759981541386,5.10059797,225.71,225.67,0.68]
[1759981541585,4.43059797,225.71,225.68,0.68]
[1759981541810,4.43059797,225.71,225.69,0.68]
[1759981542915,4.43007132,225.73,225.67,0.68]
[1759981543207,1.66011905,225.71,225.66,10.87647521]
[1759981543504,1.66011905,225.71,225.66,11.56647521]
[1759981543809,0.72,225.71,225.66,11.56647521]
[1759981544509,0.72,225.7,225.66,11.56647521]
[1759981544908,0.72,225.7,225.65,10.87647521]
[1759981545291,6.09058291,225.71,225.66,0.69]
[1759981545506,6.81058291,225.71,225.66,0.69]
[1759981546611,5.15046386,225.71,225.67,0.69]
[1759981547904,4.43046386,225.71,225.67,0.69]
[1759981548712,5.15046386,225.71,225.67,0.69]
[1759981548909,4.43046386,225.71,225.67,0.69]
[1759981549113,1.66011905,225.72,225.67,0.69]
[1759981549291,1.66011905,225.72,225.65,12.53659426]
[1759981549292,4.42948263,225.76,225.69,1.66011905]
[1759981549493,5.14948263,225.76,225.71,12.53659426]
[1759981549714,5.14948263,225.76,225.71,13.22659426]
[1759981551397,4.62916123,225.78,225.74,1.66011905]
[1759981551717,4.62916123,225.78,225.75,2.35011905]
[1759981551897,4.62916123,225.78,225.75,1.66011905]
[1759981552098,0.2,225.78,225.76,0.69]
[1759981552497,0.2,225.78,225.76,2.35011905]
[1759981553523,0.2,225.78,225.77,2.35011905]
[1759981554404,0.2,225.78,225.77,0.69]
[1759981554599,0.2,225.78,225.73,4.42996968]
[1759981554916,4.62911989,225.78,225.76,2.35011905]
[1759981556820,0.2,225.78,225.76,1.66011905]
[1759981557029,0.2,225.78,225.77,2.35011905]
[1759981558752,0.2,225.78,225.77,13.22659426]
[1759981559219,0.2,225.78,225.77,17.6558807]
[1759981565632,0.2,225.78,225.77,48.8158807]
[1759981574020,0.2,225.78,225.77,15.30576165]
[1759981574224,0.86,225.78,225.77,43.65659426]
[1759981574438,0.86,225.78,225.77,41.99647521]
[1759981574633,0.86,225.78,225.77,31.16]
[1759981576124,6.94931543,225.78,225.61,53.23050709]
[1759981576333,1.66011905,225.74,225.67,1.66011905]
[1759981576653,1.66011905,225.72,225.68,31.24]
[1759981576839,0.66,225.71,225.67,25.32]
[1759981577034,15.70192204,225.78,225.62,1.66011905]
[1759981577035,1.66011905,225.69,225.62,1.66011905]
[1759981577359,5.09109032,225.68,225.64,10.87647521]
[1759981577528,0.66,225.67,225.64,10.87647521]
[1759981577732,0.66,225.67,225.63,31.24]
[1759981577932,0.66,225.66,225.63,31.24]
[1759981578148,0.66,225.65,225.63,31.24]
[1759981578466,0.66,225.64,225.63,31.24]
[1759981579653,0.66,225.69,225.64,10.87647521]
[1759981579862,0.66,225.69,225.67,1.66011905]
[1759981580662,4.42967884,225.75,225.68,1.66011905]
[1759981580842,5.08967884,225.75,225.72,1.66011905]
[1759981581155,0.66,225.75,225.72,1.66011905]
[1759981581336,0.66,225.74,225.71,1.66011905]
[1759981581666,4.42949011,225.76,225.69,31.26]
[1759981581667,0.66,225.73,225.69,31.26]
[1759981581866,0.66,225.72,225.69,32.92011905]
[1759981582162,0.66,225.71,225.69,32.92011905]
[1759981583249,4.43007153,225.73,225.7,1.66011905]
[1759981583565,0.66,225.72,225.69,32.92011905]
[1759981583934,0.66,225.72,225.69,33.85171422]
[1759981584167,0.66,225.71,225.69,33.85171422]
[1759981584754,0.66,225.71,225.69,31.26]
[1759981585256,0.66,225.71,225.68,2.59171422]
[1759981585457,0.66,225.71,225.69,2.59171422]
[1759981585952,0.66,225.7,225.66,31.67647521]
[1759981586158,0.66,225.69,225.66,31.67647521]
[1759981586347,0.66,225.68,225.66,10.87647521]
[1759981586540,0.66,225.67,225.65,31.26]
[1759981586741,18.098338,225.71,225.65,33.85171422]
[1759981586947,0.66,225.69,225.65,2.59171422]
[1759981587155,5.09094135,225.69,225.66,2.59171422]
[1759981587457,4.43047414,225.71,225.67,2.59171422]
[1759981587662,4.43047414,225.71,225.68,2.59171422]
[1759981587954,5.09047414,225.71,225.68,2.59171422]
[1759981591345,4.43020829,225.73,225.69,2.59171422]
[1759981591531,4.43020829,225.73,225.69,3.31171422]
[1759981591736,5.09020829,225.73,225.69,2.59171422]
[1759981592151,0.66,225.72,225.67,10.87647521]
[1759981592458,0.66,225.71,225.67,13.46818943]
[1759981592850,0.66,225.7,225.67,13.46818943]
[1759981593042,0.66,225.69,225.67,10.87647521]
[1759981593231,4.43071252,225.7,225.67,10.87647521]
[1759981593437,4.43071252,225.7,225.67,2.59171422]
[1759981594157,0.66,225.69,225.65,23.39171422]
[1759981594358,0.66,225.68,225.63,13.46818943]
[1759981594548,0.66,225.67,225.63,13.46818943]
[1759981595462,5.0913939,225.67,225.63,13.46818943]
[1759981597242,0.71,225.66,225.63,13.46818943]
[1759981598364,4.43124916,225.67,225.63,14.16818943]
[1759981599061,5.14095061,225.69,225.66,2.59171422]
[1759981599840,0.71,225.71,225.68,2.59171422]
[1759981600162,0.71,225.7,225.64,13.46818943]
[1759981600337,0.71,225.69,225.64,13.46818943]
[1759981600537,4.43105281,225.68,225.64,13.46818943]
[1759981600734,0.71,225.67,225.64,10.87647521]
[1759981600945,0.71,225.67,225.63,13.46818943]
[1759981601549,4.43105281,225.68,225.63,14.16818943]
[1759981602058,0.71,225.67,225.63,14.16818943]
[1759981602462,4.43105281,225.68,225.63,14.16818943]
[1759981602641,4.43105281,225.68,225.63,13.46818943]
[1759981602844,5.14105281,225.68,225.64,0.7]
[1759981604138,5.14105281,225.68,225.63,13.46818943]
[1759981604339,0.72,225.67,225.62,33.83171422]
[1759981604550,15.50868485,225.68,225.63,3.31171422]
[1759981604757,16.22868485,225.68,225.63,3.31171422]
[1759981604957,16.22868485,225.68,225.63,0.72]
[1759981605163,16.22868485,225.68,225.63,3.31171422]
[1759981606669,0.72,225.67,225.63,3.31171422]
[1759981607459,0.72,225.66,225.63,2.59171422]
[1759981607650,11.79763204,225.68,225.63,3.31171422]
[1759981607969,0.72,225.67,225.63,3.31171422]
[1759981608844,4.43144553,225.66,225.63,3.31171422]
[1759981609040,4.43144553,225.66,225.63,2.59171422]
[1759981609246,4.43128395,225.67,225.64,3.31171422]
[1759981609955,4.43128395,225.67,225.65,0.72]
[1759981611077,11.07763204,225.68,225.64,2.59171422]
[1759981611379,11.07763204,225.68,225.64,3.31171422]
[1759981613453,11.79763204,225.68,225.64,3.31171422]
[1759981614071,11.79763204,225.68,225.64,0.72]
[1759981614875,16.22868485,225.68,225.64,0.72]
[1759981616272,0.72,225.67,225.63,2.59171422]
[1759981616461,15.50868485,225.68,225.63,3.31171422]
[1759981616774,16.22868485,225.68,225.63,3.31171422]
[1759981618072,0.72,225.67,225.59,4.43281788]
[1759981618272,0.72,225.66,225.61,2.59171422]
[1759981618482,2.59171422,225.67,225.6,3.31171422]
[1759981618668,0.72,225.65,225.6,3.31171422]
[1759981618981,2.59171422,225.64,225.55,0.72]
[1759981619160,3.31171422,225.63,225.56,44.60818943]
[1759981619369,0.72,225.62,225.56,44.60818943]
[1759981620162,4.43242764,225.61,225.56,44.60818943]
[1759981620365,0.72,225.6,225.54,10.87647521]
[1759981620564,0.72,225.6,225.54,42.03647521]
[1759981620773,0.72,225.6,225.54,42.75647521]
[1759981621168,3.31171422,225.6,225.54,42.75647521]
[1759981621487,4.4328206,225.59,225.55,0.72]
[1759981621782,4.4328206,225.59,225.56,0.72]
[1759981621956,4.4328206,225.59,225.54,42.75647521]
[1759981622162,4.4328206,225.59,225.55,0.72]
[1759981623584,15.51418439,225.6,225.55,0.72]
[1759981623890,3.31171422,225.58,225.52,0.72]
[1759981624382,0.72,225.58,225.52,0.72]
[1759981624782,2.59171422,225.57,225.52,0.72]